bitfinex/quotes_SOLUSD_20241126
["timestamp","ask_amount","ask_price","bid_price","bid_amount"]
[1732610631413,17.25687197,233.0,232.97,0.40446053]
[1732610631716,17.25687197,232.98,232.97,0.40446053]
[1732610631908,23.776884,232.97,232.87,17.25687197]
[1732610632110,23.776884,232.95,232.89,17.25687197]
[1732610632321,23.776884,232.97,232.9,17.25687197]
[1732610633299,17.25687197,232.98,232.93,17.25687197]
[1732610633300,23.776884,232.98,232.93,17.25687197]
[1732610633495,23.776884,232.99,232.93,17.25687197]
[1732610633708,41.03375597,232.99,232.92,17.25687197]
[1732610633908,23.776884,232.99,232.93,17.25687197]
[1732610634104,17.25687197,233.0,232.93,17.25687197]
[1732610634917,17.25687197,232.99,232.92,17.25687197]
[1732610635109,17.25687197,233.0,232.93,17.25687197]
[1732610635419,23.776884,233.0,232.94,17.25687197]
[1732610636705,23.776884,233.01,232.95,17.25687197]
[1732610636909,28.39898765,233.26,232.87,4.2942]
[1732610636910,17.25687197,233.05,232.98,17.25687197]
[1732610637115,12.7334,233.12,232.98,17.25687197]
[1732610637116,17.25687197,233.06,232.98,17.25687197]
[1732610638307,23.776884,233.05,232.98,17.25687197]
[1732610638526,17.25687197,233.04,232.97,17.25687197]
[1732610640423,17.25687197,233.04,232.94,4.2928]
[1732610640424,17.25687197,233.01,232.94,17.25687197]
[1732610640598,17.25687197,233.0,232.92,17.25687197]
[1732610640808,17.25687197,232.99,232.92,17.25687197]
[1732610641006,17.25687197,233.0,232.93,17.25687197]
[1732610641202,17.25687197,233.0,232.92,17.25687197]
[1732610642115,17.25687197,232.96,232.89,17.25687197]
[1732610642806,17.25687197,232.97,232.9,17.25687197]
[1732610643126,23.776884,232.97,232.91,17.25687197]
[1732610643504,41.03375597,232.97,232.9,17.25687197]
[1732610643901,23.776884,232.97,232.91,17.25687197]
[1732610644104,17.25687197,233.02,232.94,17.25687197]
[1732610644326,17.25687197,233.02,232.95,17.25687197]
[1732610645123,31.7528,233.1,232.95,17.25687197]
[1732610645124,17.25687197,233.03,232.95,17.25687197]
[1732610645628,17.25687197,233.02,232.94,17.25687197]
[1732610645817,17.25687197,233.03,232.95,17.25687197]
[1732610646809,17.25687197,233.01,232.93,17.25687197]
[1732610647113,41.03375597,233.0,232.88,4.294]
[1732610647326,41.03375597,233.0,232.93,17.25687197]
[1732610647526,17.25687197,233.02,232.95,17.25687197]
[1732610648131,23.776884,233.02,232.96,17.25687197]
[1732610648430,17.25687197,233.0,232.93,17.25687197]
[1732610648818,17.25687197,232.96,232.89,20.0]
[1732610649023,17.25687197,232.98,232.9,17.25687197]
[1732610649209,17.25687197,232.99,232.92,17.25687197]
[1732610649542,23.776884,232.99,232.93,17.25687197]
[1732610649837,22.7334,233.12,232.98,17.25687197]
[1732610650012,17.25687197,233.06,232.98,17.25687197]
[1732610650208,17.25687197,233.06,232.92,17.25687197]
[1732610650423,17.25687197,233.04,232.97,17.25687197]
[1732610652142,17.25687197,233.04,232.95,17.25687197]
[1732610652143,17.25687197,233.02,232.95,17.25687197]
[1732610652309,23.776884,233.04,232.86,12.725]
[1732610652310,17.25687197,232.99,232.91,17.25687197]
[1732610652504,23.776884,233.04,232.86,12.725]
[1732610652505,17.25687197,232.94,232.86,12.725]
[1732610652729,23.776884,233.04,232.84,4.2946]
[1732610652925,33.776884,233.04,232.84,4.2946]
[1732610653232,23.776884,232.96,232.9,17.25687197]
[1732610653620,17.25687197,232.97,232.9,17.25687197]
[1732610654216,17.25687197,232.97,232.89,17.25687197]
[1732610654433,17.25687197,232.96,232.89,17.25687197]
[1732610654927,17.25687197,232.95,232.88,17.25687197]
[1732610655132,33.776884,233.04,232.86,4.2942]
[1732610655317,17.25687197,233.01,232.94,17.25687197]
[1732610655635,17.25687197,233.04,232.96,17.25687197]
[1732610656015,17.25687197,233.05,232.97,17.25687197]
[1732610656213,4.2901,233.09,232.97,17.25687197]
[1732610656415,4.2901,233.09,232.93,12.801]
[1732610656416,17.25687197,233.04,232.96,17.25687197]
[1732610656715,17.25687197,233.03,232.95,17.25687197]
[1732610657143,17.25687197,233.01,232.94,17.25687197]
[1732610657316,17.25687197,233.01,232.93,12.801]
[1732610657317,17.25687197,233.01,232.93,30.05787197]
[1732610657515,17.25687197,233.01,232.94,17.25687197]
[1732610657716,17.25687197,233.02,232.95,17.25687197]
[1732610658113,17.25687197,233.0,232.93,30.05787197]
[1732610658308,17.25687197,233.01,232.94,17.25687197]
[1732610658940,41.03375597,233.0,232.93,30.05787197]
[1732610659139,23.776884,233.0,232.94,17.25687197]
[1732610659318,17.25687197,233.02,232.94,17.25687197]
[1732610659515,17.25687197,233.02,232.95,17.25687197]
[1732610660037,17.25687197,233.03,232.96,17.25687197]
[1732610660547,23.776884,233.04,232.97,17.25687197]
[1732610661121,12.7334,233.12,233.03,17.25687197]
[1732610661459,17.25687197,233.08,233.01,17.25687197]
[1732610661619,17.25687197,233.08,233.0,17.25687197]
[1732610661816,17.25687197,233.08,232.95,34.6876]
[1732610662043,17.25687197,233.1,233.02,17.25687197]
[1732610662344,17.25687197,233.1,232.95,34.6876]
[1732610662345,17.25687197,233.1,233.03,17.25687197]
[1732610664536,17.25687197,233.11,233.04,17.25687197]
[1732610665220,0.4972288,233.14,232.96,4.2925]
[1732610665221,17.25687197,233.12,233.05,17.25687197]
[1732610665823,17.25687197,233.09,233.03,17.25687197]
[1732610666427,17.25687197,233.09,233.02,17.25687197]
[1732610666741,17.25687197,233.09,233.03,17.25687197]
[1732610666941,17.25687197,233.09,233.02,21.54827197]
[1732610667147,17.25687197,233.08,233.01,17.25687197]
[1732610667439,17.25687197,233.07,233.0,17.25687197]
[1732610667638,17.25687197,233.07,232.95,30.3949]
[1732610667639,17.25687197,233.06,232.99,17.25687197]
[1732610667830,17.25687197,233.05,232.98,17.25687197]
[1732610668345,17.25687197,233.06,232.99,17.25687197]
[1732610668526,17.25687197,233.07,233.0,17.25687197]
[1732610669140,23.776884,233.12,233.02,17.25687197]
[1732610669333,17.25687197,233.1,233.03,17.25687197]
[1732610669640,17.25687197,233.09,233.02,17.25687197]
[1732610670543,1.71671,233.13,233.03,17.25687197]
[1732610670544,17.25687197,233.1,233.03,17.25687197]
[1732610671057,17.25687197,233.09,233.02,17.25687197]
[1732610671420,17.25687197,233.09,233.02,21.54817197]
[1732610671623,23.776884,233.12,233.02,21.54817197]
[1732610671838,17.25687197,233.09,233.02,17.25687197]
[1732610672058,23.776884,233.12,232.98,17.25687197]
[1732610672060,17.25687197,233.05,232.98,17.25687197]
[1732610672224,17.25687197,233.08,233.01,17.25687197]
[1732610674126,17.25687197,233.05,232.98,17.25687197]
[1732610675123,17.25687197,233.05,232.98,21.54887197]
[1732610675766,17.25687197,233.08,233.01,17.25687197]
[1732610676051,17.25687197,233.07,233.0,17.25687197]
[1732610676223,17.25687197,233.08,233.0,17.25687197]
[1732610676861,17.25687197,233.07,233.0,17.25687197]
[1732610677232,17.25687197,233.06,232.99,21.54877197]
[1732610677529,17.25687197,233.05,232.99,17.25687197]
[1732610677933,17.25687197,233.06,232.99,17.25687197]
[1732610678242,17.25687197,233.08,233.01,17.25687197]
[1732610678559,23.776884,233.07,233.01,17.25687197]
[1732610679152,17.25687197,233.06,232.99,17.25687197]
[1732610679653,17.25687197,233.06,232.98,17.25687197]
[1732610679851,17.25687197,233.05,232.98,17.25687197]
[1732610680556,17.25687197,233.02,232.95,47.65177197]
[1732610680732,17.25687197,233.0,232.9,32.2511]
[1732610681058,41.03375597,232.98,232.91,17.25687197]
[1732610681353,23.776884,233.02,232.88,17.5451]
[1732610682141,23.776884,233.02,232.89,4.2938]
[1732610682348,17.25687197,233.0,232.93,17.25687197]
[1732610683548,17.25687197,233.01,232.94,17.25687197]
[1732610684462,41.03375597,233.02,232.95,17.25687197]
[1732610684962,17.25687197,233.01,232.94,17.25687197]
[1732610685567,17.25687197,233.02,232.95,17.25687197]
[1732610685942,17.25687197,233.01,232.94,17.25687197]
[1732610686164,17.25687197,233.02,232.95,17.25687197]
[1732610686342,17.25687197,233.01,232.94,17.25687197]
[1732610687558,17.25687197,233.0,232.93,17.25687197]
[1732610687751,17.25687197,233.0,232.92,17.25687197]
[1732610688154,17.25687197,232.99,232.92,17.25687197]
[1732610689853,17.25687197,233.0,232.92,17.25687197]
[1732610690065,17.25687197,233.0,232.92,21.55017197]
[1732610691150,17.25687197,232.99,232.92,21.55017197]
[1732610691466,17.25687197,232.97,232.9,17.25687197]
[1732610691664,23.776884,232.97,232.91,17.25687197]
[1732610692152,41.03375597,232.97,232.91,17.25687197]
[1732610692767,23.776884,232.97,232.91,17.25687197]
[1732610693846,23.776884,232.97,232.92,17.25687197]
[1732610694253,17.25687197,232.99,232.92,17.25687197]
[1732610694457,17.25687197,233.01,232.94,17.25687197]
[1732610694746,23.776884,233.0,232.94,17.25687197]
[1732610695262,23.776884,233.0,232.93,17.25687197]
[1732610695263,41.03375597,233.0,232.93,17.25687197]
[1732610695670,17.25687197,232.99,232.92,17.25687197]
[1732610696371,17.25687197,232.98,232.91,37.25687197]
[1732610696559,17.25687197,232.99,232.92,17.25687197]
[1732610697575,23.776884,232.98,232.92,17.25687197]
[1732610697761,41.03375597,232.98,232.91,37.25687197]
[1732610698571,41.03375597,232.98,232.91,41.55027197]
[1732610699459,17.25687197,232.97,232.91,24.2934]
[1732610699766,41.03375597,232.98,232.91,41.55027197]
[1732610699976,17.25687197,232.97,232.91,24.2934]
[1732610700286,23.776884,232.98,232.84,32.2511]
[1732610700447,23.776884,232.98,232.83,0.39378843]
[1732610700448,11.05529137,232.89,232.83,0.39378843]
[1732610700652,4.2924,232.97,232.83,0.39378843]
[1732610700653,11.05529137,232.86,232.83,0.39378843]
[1732610700857,11.05529137,232.84,232.83,0.39378843]
[1732610701069,11.05529137,232.84,232.78,4.2958]
[1732610701259,11.05529137,232.85,232.78,15.35109137]
[1732610701473,44.22116548,232.92,232.76,12.3957]
[1732610701474,11.05529137,232.83,232.76,12.3957]
[1732610701770,11.05529137,232.83,232.76,16.6919]
[1732610701982,11.05529137,232.83,232.76,11.05529137]
[1732610702283,17.28912634,232.83,232.76,17.28912634]
[1732610702461,17.28912634,232.81,232.75,17.28912634]
[1732610702661,17.28912634,232.8,232.74,17.28912634]
[1732610702864,17.28912634,232.81,232.75,17.28912634]
[1732610704280,31.5378,232.87,232.8,17.28912634]
[1732610704573,17.28912634,232.88,232.82,17.28912634]
[1732610705168,17.28912634,232.88,232.81,17.28912634]
[1732610705370,17.28912634,232.85,232.78,17.28912634]
[1732610705572,17.28912634,232.84,232.77,17.28912634]
[1732610705871,17.28912634,232.82,232.75,37.28912634]
[1732610706177,17.28912634,232.82,232.75,17.28912634]
[1732610706785,4.294,232.88,232.74,17.28912634]
[1732610706786,17.28912634,232.81,232.74,17.28912634]
[1732610706991,17.28912634,232.77,232.65,4.2983]
[1732610707167,17.28912634,232.76,232.69,17.28912634]
[1732610707355,17.28912634,232.8,232.73,17.28912634]
[1732610707685,23.776884,232.82,232.76,17.28912634]
[1732610707878,17.28912634,232.81,232.74,4.2966]
[1732610708084,23.776884,232.82,232.75,17.28912634]
[1732610708379,41.06601034,232.82,232.75,17.28912634]
[1732610708573,17.28912634,232.81,232.75,17.28912634]
[1732610709178,17.28912634,232.8,232.73,17.28912634]
[1732610709381,17.28912634,232.76,232.69,17.28912634]
[1732610709558,17.28912634,232.75,232.69,17.28912634]
[1732610709759,17.28912634,232.77,232.71,17.28912634]
[1732610710167,17.28912634,232.77,232.64,13.46451004]
[1732610710168,17.28912634,232.76,232.69,17.28912634]
[1732610710662,28.071984,232.82,232.74,17.28912634]
[1732610710663,17.28912634,232.8,232.74,17.28912634]
[1732610710862,17.28912634,232.76,232.7,17.28912634]
[1732610711077,17.28912634,232.76,232.69,17.28912634]
[1732610711269,17.28912634,232.78,232.71,17.28912634]
[1732610711476,28.072084,232.82,232.71,17.28912634]
[1732610711684,17.28912634,232.78,232.72,17.28912634]
[1732610712073,17.28912634,232.78,232.7,4.2973]
[1732610712074,17.28912634,232.78,232.71,17.28912634]
[1732610712463,23.776884,232.78,232.72,17.28912634]
[1732610714868,41.06601034,232.78,232.71,17.28912634]
[1732610715259,41.06601034,232.78,232.7,21.58642634]
[1732610715465,17.28912634,232.75,232.69,17.28912634]
[1732610716263,17.28912634,232.75,232.68,21.58662634]
[1732610716491,17.28912634,232.69,232.64,0.39411004]
[1732610716788,23.776884,232.71,232.64,0.39411004]
[1732610717173,15.0356,232.78,232.64,4.2984]
[1732610717174,34.5109,232.78,232.64,4.2984]
[1732610717567,17.28912634,232.73,232.67,17.28912634]
[1732610717986,23.776884,232.77,232.68,17.28912634]
[1732610718192,17.28912634,232.74,232.68,17.28912634]
[1732610718570,17.28912634,232.73,232.66,17.28912634]
[1732610719287,10.0,232.81,232.65,4.2981]
[1732610719288,10.0,232.83,232.71,17.28912634]
[1732610719482,17.28912634,232.78,232.71,17.28912634]
[1732610719669,17.28912634,232.76,232.69,17.28912634]
[1732610719865,17.28912634,232.75,232.68,17.28912634]
[1732610720070,17.28912634,232.74,232.68,17.28912634]
[1732610720371,17.28912634,232.77,232.7,17.28912634]
[1732610720676,17.28912634,232.79,232.73,17.28912634]
[1732610720879,17.28912634,232.81,232.75,17.28912634]
[1732610721095,30.215,232.9,232.79,17.28912634]
[1732610721300,17.28912634,232.87,232.8,17.28912634]
[1732610721978,17.28912634,232.89,232.82,17.28912634]
[1732610722182,17.28912634,232.91,232.85,17.28912634]
[1732610722367,10.71549477,232.93,232.79,17.28912634]
[1732610722571,15.00859477,232.93,232.76,20.0]
[1732610722888,10.0,232.9,232.73,46.2353]
[1732610723083,10.0,232.91,232.73,46.2353]
[1732610723390,23.776884,232.81,232.67,46.2353]
[1732610723699,17.28912634,232.73,232.67,46.2353]
[1732610723912,17.28912634,232.73,232.67,13.1319]
[1732610724188,17.28912634,232.68,232.61,63.52442634]
[1732610724391,17.28912634,232.69,232.62,17.28912634]
[1732610724772,4.2967,232.74,232.61,67.82332634]
[1732610724773,17.28912634,232.68,232.61,67.82332634]
[1732610724986,17.28912634,232.68,232.62,17.28912634]
[1732610725178,17.28912634,232.71,232.64,17.28912634]
[1732610725377,17.28912634,232.72,232.65,17.28912634]
[1732610725564,17.28912634,232.72,232.66,17.28912634]
[1732610725770,23.776884,232.77,232.67,17.28912634]
[1732610725969,17.28912634,232.74,232.67,17.28912634]
[1732610726190,17.28912634,232.73,232.66,17.28912634]
[1732610726572,17.28912634,232.72,232.65,17.28912634]
[1732610727180,23.776884,232.73,232.67,17.28912634]
[1732610727696,17.28912634,232.72,232.65,17.28912634]
[1732610727886,17.28912634,232.68,232.61,63.52442634]
[1732610728198,17.28912634,232.67,232.61,46.2353]
[1732610729076,23.776884,232.73,232.61,67.82332634]
[1732610729077,17.28912634,232.68,232.61,67.82332634]
[1732610729379,41.06601034,232.71,232.64,17.28912634]
[1732610729570,17.28912634,232.7,232.63,17.28912634]
[1732610729996,4.2965,232.75,232.61,50.5342]
[1732610729997,17.28912634,232.72,232.66,17.28912634]
[1732610730170,17.28912634,232.73,232.67,17.28912634]
[1732610730380,23.776884,232.73,232.67,17.28912634]
[1732610730822,41.06601034,232.73,232.66,17.28912634]
[1732610730988,17.28912634,232.69,232.62,17.28912634]
[1732610731374,17.28912634,232.68,232.61,30.42102634]
[1732610731581,17.28912634,232.66,232.59,17.28912634]
[1732610731808,23.776884,232.68,232.56,12.524]
[1732610732098,17.28912634,232.62,232.56,12.524]
[1732610732302,17.28912634,232.59,232.51,0.39433039]
[1732610732508,17.28912634,232.54,232.51,0.39433039]
[1732610732803,17.28912634,232.52,232.51,0.39433039]
[1732610733183,17.28912634,232.53,232.51,0.39433039]
[1732610733599,17.28912634,232.52,232.51,0.39433039]
[1732610734684,41.06601034,232.52,232.5,7.64576679]
[1732610734891,17.28912634,232.56,232.5,7.64576679]
[1732610734892,41.06601034,232.51,232.5,7.64576679]
[1732610738107,73.14061034,232.51,232.5,7.64576679]
[1732610738685,73.14061034,232.51,232.36,21.59262634]
[1732610738686,17.505,232.5,232.34,34.61435514]
[1732610738888,61.06601034,232.49,232.36,17.28912634]
[1732610739104,32.0746,232.51,232.44,17.28912634]
[1732610739290,17.28912634,232.49,232.43,17.28912634]
[1732610739484,17.28912634,232.49,232.39,21.59212634]
[1732610739676,17.28912634,232.49,232.37,4.3033]
[1732610740004,17.28912634,232.49,232.34,13.0212288]
[1732610740005,17.28912634,232.49,232.36,4.3035]
[1732610740201,17.28912634,232.49,232.36,21.59262634]
[1732610740507,41.06601034,232.49,232.36,4.3035]
[1732610740809,41.06601034,232.49,232.34,13.0212288]
[1732610740810,20.0,232.42,232.34,0.4972288]
[1732610741007,23.776884,232.44,232.34,0.4972288]
[1732610741209,17.28912634,232.4,232.34,0.4972288]
[1732610741396,32.0746,232.45,232.34,0.4972288]
[1732610741397,41.06601034,232.39,232.34,0.4972288]
[1732610741592,17.28912634,232.38,232.34,0.4972288]
[1732610741901,17.28912634,232.37,232.34,0.4972288]
[1732610742077,17.28912634,232.38,232.34,0.4972288]
[1732610742284,23.776884,232.39,232.34,0.4972288]
[1732610742788,41.06601034,232.39,232.34,0.4972288]
[1732610743195,32.0746,232.45,232.34,0.4972288]
[1732610743196,17.28912634,232.38,232.34,0.4972288]
[1732610743401,17.28912634,232.39,232.34,0.4972288]
[1732610743719,17.28912634,232.38,232.34,0.4972288]
[1732610743887,17.28912634,232.37,232.34,0.4972288]
[1732610744204,17.28912634,232.36,232.34,0.4972288]
[1732610744398,17.28912634,232.37,232.34,0.4972288]
[1732610745103,17.28912634,232.36,232.34,0.4972288]
[1732610745786,17.28912634,232.35,232.34,0.4972288]
[1732610745988,10.0,232.43,232.34,0.4972288]
[1732610745989,17.28912634,232.37,232.34,0.4972288]
[1732610746194,17.28912634,232.39,232.34,0.4972288]
[1732610746492,4.3024,232.43,232.34,0.4972288]
[1732610746695,20.0,232.42,232.34,0.4972288]
[1732610746900,17.28912634,232.41,232.34,17.78635514]
[1732610747311,17.28912634,232.4,232.34,0.4972288]
[1732610747488,17.28912634,232.38,232.34,0.4972288]
[1732610747697,17.28912634,232.4,232.34,0.4972288]
[1732610748218,17.28912634,232.38,232.34,0.4972288]
[1732610748592,17.28912634,232.37,232.34,0.4972288]
[1732610750121,17.28912634,232.36,232.34,0.4972288]
[1732610750318,23.776884,232.41,232.34,17.78635514]
[1732610750319,17.28912634,232.41,232.34,17.78635514]
[1732610750797,17.28912634,232.38,232.34,0.4972288]
[1732610750998,17.28912634,232.36,232.34,0.4972288]
[1732610751304,17.28912634,232.38,232.34,0.4972288]
[1732610752815,17.28912634,232.39,232.34,0.4972288]
[1732610753716,17.28912634,232.38,232.34,0.4972288]
[1732610753894,17.28912634,232.35,232.34,0.4972288]
[1732610754412,20.0,232.42,232.34,0.4972288]
[1732610754711,4.303,232.4,232.34,0.4972288]
[1732610754915,37.28912634,232.35,232.34,0.4972288]
[1732610755207,61.06601034,232.35,232.34,0.4972288]
[1732610756008,65.36981034,232.35,232.34,0.4972288]
[1732610756419,17.28912634,232.37,232.34,0.4972288]
[1732610756711,17.28912634,232.36,232.34,0.4972288]
[1732610759208,10.0,232.43,232.34,0.4972288]
[1732610759209,17.28912634,232.35,232.34,0.4972288]
[1732610759520,41.06601034,232.35,232.34,0.4972288]
[1732610760024,45.36981034,232.35,232.34,0.4972288]
[1732610760716,20.0,232.3,232.25,5.66583427]
[1732610761217,17.28912634,232.26,232.25,5.66583427]
[1732610761405,17.28912634,232.28,232.21,17.28912634]
[1732610761916,17.28912634,232.26,232.19,17.28912634]
[1732610762089,21.59462634,232.26,232.19,17.28912634]
[1732610762511,17.28912634,232.27,232.2,17.28912634]
[1732610762695,21.59442634,232.27,232.2,17.28912634]
[1732610762902,36.5485865,232.29,232.22,17.28912634]
[1732610763119,23.776884,232.32,232.26,17.28912634]
[1732610763416,4.3038,232.36,232.2,17.28912634]
[1732610763619,17.28912634,232.39,232.33,17.28912634]
[1732610764113,17.28912634,232.39,232.27,13.1994]
[1732610764299,17.28912634,232.41,232.34,17.28912634]
[1732610764497,17.28912634,232.42,232.36,17.28912634]
[1732610764708,21.59162634,232.42,232.36,17.28912634]
[1732610765302,17.28912634,232.43,232.36,17.28912634]
[1732610765632,17.28912634,232.43,232.28,4.3051]
[1732610765633,10.73455829,232.45,232.41,17.28912634]
[1732610766230,10.73455829,232.45,232.4,17.28912634]
[1732610766406,10.73455829,232.45,232.4,27.75247994]
[1732610766605,10.73455829,232.45,232.39,27.75247994]
[1732610766925,27.75247994,232.44,232.37,27.75247994]
[1732610767130,27.75247994,232.42,232.35,27.75247994]
[1732610767302,27.75247994,232.41,232.34,27.75247994]
[1732610768325,27.75247994,232.43,232.36,27.75247994]
[1732610768535,10.73455829,232.45,232.41,27.75247994]
[1732610768702,27.75247994,232.43,232.36,27.75247994]
[1732610768907,27.75247994,232.44,232.37,27.75247994]
[1732610769601,27.75247994,232.4,232.33,27.75247994]
[1732610770131,27.75247994,232.41,232.34,27.75247994]
[1732610770335,27.75247994,232.44,232.38,27.75247994]
[1732610770529,27.75247994,232.43,232.36,27.75247994]
[1732610770845,27.75247994,232.43,232.37,27.75247994]
[1732610771007,27.75247994,232.44,232.37,27.75247994]
[1732610771316,10.73455829,232.45,232.41,27.75247994]
[1732610771830,10.73455829,232.45,232.42,27.75247994]
[1732610772030,10.73455829,232.45,232.43,27.75247994]
[1732610772229,10.73455829,232.45,232.44,27.75247994]
[1732610772437,10.73455829,232.45,232.42,27.75247994]
[1732610773233,38.48703823,232.45,232.38,27.75247994]
[1732610773529,10.73455829,232.45,232.39,27.75247994]
[1732610773735,10.73455829,232.45,232.41,27.75247994]
[1732610773924,10.73455829,232.45,232.4,27.75247994]
[1732610774716,27.75247994,232.44,232.37,27.75247994]
[1732610776235,10.73455829,232.45,232.4,27.75247994]
[1732610776721,10.73455829,232.45,232.44,27.75247994]
[1732610777812,10.73455829,232.45,232.44,68.41755988]
[1732610778044,32.05107994,232.63,232.47,20.0]
[1732610778344,4.2986,232.64,232.6,27.75247994]
[1732610778641,4.2981,232.66,232.6,27.75247994]
[1732610778823,27.75247994,232.65,232.58,27.75247994]
[1732610779150,4.2981,232.66,232.56,27.75247994]
[1732610779151,27.75247994,232.63,232.56,27.75247994]
[1732610779331,27.75247994,232.61,232.54,27.75247994]
[1732610779644,27.75247994,232.63,232.56,27.75247994]
[1732610779857,15.0433,232.66,232.55,27.75247994]
[1732610779858,27.75247994,232.62,232.55,27.75247994]
[1732610780216,27.75247994,232.65,232.58,27.75247994]
[1732610780419,32.05047994,232.67,232.6,27.75247994]
[1732610780640,27.75247994,232.65,232.58,27.75247994]
[1732610781220,27.75247994,232.66,232.59,27.75247994]
[1732610781637,4.2983,232.65,232.59,27.75247994]
[1732610781848,4.298,232.67,232.61,27.75247994]
[1732610782026,4.2976,232.69,232.63,27.75247994]
[1732610782544,27.75247994,232.68,232.6,27.75247994]
[1732610782720,27.75247994,232.65,232.58,27.75247994]
[1732610783040,27.75247994,232.63,232.56,27.75247994]
[1732610783247,27.75247994,232.62,232.55,27.75247994]
[1732610783626,4.2994,232.59,232.5,12.9126]
[1732610783823,4.2994,232.59,232.46,32.0477]
[1732610784023,23.776884,232.58,232.46,32.0477]
[1732610784223,27.75247994,232.57,232.5,27.75247994]
[1732610784423,27.75247994,232.57,232.46,36.3494]
[1732610784626,32.05187994,232.59,232.52,27.75247994]
[1732610784826,27.75247994,232.59,232.52,27.75247994]
[1732610785031,20.0,232.61,232.56,27.75247994]
[1732610785231,20.0,232.61,232.46,36.3494]
[1732610785232,20.0,232.61,232.58,27.75247994]
[1732610785418,20.0,232.61,232.56,27.75247994]
[1732610785834,20.0,232.61,232.46,32.0477]
[1732610785835,4.299,232.61,232.46,32.0477]
[1732610786044,27.75247994,232.58,232.51,27.75247994]
[1732610786241,27.75247994,232.59,232.52,27.75247994]
[1732610786434,27.75247994,232.6,232.54,27.75247994]
[1732610786646,27.75247994,232.6,232.53,27.75247994]
[1732610786950,27.75247994,232.58,232.51,27.75247994]
[1732610787846,4.2995,232.59,232.53,27.75247994]
[1732610788023,4.2991,232.61,232.53,27.75247994]
[1732610788349,27.75247994,232.59,232.52,27.75247994]
[1732610788949,47.75247994,232.62,232.55,27.75247994]
[1732610789252,27.75247994,232.64,232.57,27.75247994]
[1732610789545,27.75247994,232.64,232.58,27.75247994]
[1732610789546,4.2985,232.64,232.58,27.75247994]
[1732610789756,27.75247994,232.63,232.56,27.75247994]
[1732610790554,27.75247994,232.6,232.53,27.75247994]
[1732610790874,27.75247994,232.6,232.47,4.3016]
[1732610790875,27.75247994,232.63,232.56,27.75247994]
[1732610791050,27.75247994,232.62,232.55,27.75247994]
[1732610791429,32.05127994,232.62,232.55,27.75247994]
[1732610791633,4.2988,232.62,232.56,27.75247994]
[1732610791949,27.75247994,232.57,232.47,4.3016]
[1732610792147,27.75247994,232.61,232.54,27.75247994]
[1732610792452,27.75247994,232.64,232.47,4.3016]
[1732610792655,24.2981,232.66,232.49,20.0]
[1732610793540,24.2981,232.66,232.5,4.301]
[1732610793850,27.75247994,232.65,232.58,27.75247994]
[1732610794047,27.75247994,232.65,232.59,27.75247994]
[1732610794253,27.75247994,232.64,232.57,27.75247994]
[1732610794749,27.75247994,232.58,232.49,27.75247994]
[1732610794958,23.776884,232.64,232.46,32.0477]
[1732610795150,23.776884,232.64,232.51,27.75247994]
[1732610795358,27.75247994,232.57,232.5,27.75247994]
[1732610795562,20.0,232.59,232.47,4.3015]
[1732610795872,27.75247994,232.58,232.51,27.75247994]
[1732610796154,27.75247994,232.56,232.49,27.75247994]
[1732610796736,27.75247994,232.55,232.48,27.75247994]
[1732610797060,27.75247994,232.55,232.45,4.3019]
[1732610797061,27.75247994,232.52,232.45,27.75247994]
[1732610797228,27.75247994,232.5,232.43,27.75247994]
[1732610797548,27.75247994,232.49,232.42,27.75247994]
[1732610797760,27.75247994,232.5,232.43,27.75247994]
[1732610797945,27.75247994,232.49,232.43,27.75247994]
[1732610798130,27.75247994,232.5,232.43,27.75247994]
[1732610798330,27.75247994,232.5,232.44,27.75247994]
[1732610798548,27.75247994,232.49,232.43,27.75247994]
[1732610798848,31.0213,232.57,232.46,27.75247994]
[1732610798849,27.75247994,232.53,232.46,27.75247994]
[1732610799226,27.75247994,232.55,232.48,27.75247994]
[1732610799428,32.05237994,232.56,232.5,27.75247994]
[1732610799651,32.05237994,232.56,232.44,27.75247994]
[1732610799652,4.2999,232.56,232.51,27.75247994]
[1732610799956,63.07357994,232.57,232.51,27.75247994]
[1732610800248,4.2983,232.65,232.56,27.75247994]
[1732610800446,27.75247994,232.63,232.56,27.75247994]
[1732610800624,27.75247994,232.64,232.57,27.75247994]
[1732610800826,4.2983,232.65,232.58,27.75247994]
[1732610800827,32.05077994,232.65,232.58,27.75247994]
[1732610801026,32.05077994,232.65,232.46,47.50802553]
[1732610801027,27.75247994,232.62,232.55,27.75247994]
[1732610801249,27.75247994,232.63,232.56,27.75247994]
[1732610801838,27.75247994,232.62,232.56,27.75247994]
[1732610802167,4.2983,232.65,232.47,4.3016]
[1732610802168,27.75247994,232.61,232.54,27.75247994]
[1732610802362,20.0,232.6,232.56,27.75247994]
[1732610802665,32.05077994,232.65,232.58,27.75247994]
[1732610802843,27.75247994,232.62,232.55,27.75247994]
[1732610803166,15.044,232.65,232.47,4.3016]